Workbook

Sheet Sheet1
A1: 1 | C1: =COUNTIF(AH33:AO57,"<0")/COUNT(AH33:AO57) -> 0.265625 | D1: =COUNTIF(AH33:AO57,"<-0.05")/COUNT(AH33:AO57) -> 0.125 | E1: =COUNTIF(AH33:AO57,"<-0.1")/COUNT(AH33:AO57) -> 0.0625 | F1: =COUNTIF(AH33:AO57,"<-0.2")/COUNT(AH33:AO57) -> 0.03125 | G1: 11936 | H1: =CO3 -> 1 | I1: SANDOWN | K1: MR 1 | L1: Min% | M1: =MIN(AH33:AO55) -> -0.3333333333 | N1: =VLOOKUP(M1,$AG$33:$AP$57,10,FALSE) -> 1 | P1: No Bet G1 | R1: 401 | T1: 16668 | U1: 28710 | V1: 31954 | W1: 38645 | X1: 41433 | Y1: 48714 | Z1: 55380 | AC1: =SUM(AB1-AA1) -> 0 | AD1: =#REF! ->  | AF1: =[1]Sch!BG7 -> URL;http://www.tabonline.com.au/2013/04/03/MR01.html | AZ1: 10 | BZ1: No of Run | CA1: =E3 -> 8 | CE1: 7 to 10 | CF1: 11 to 18 | CG1: Total | CN1: 110%Plus | CO1: =COUNTIF(CO7:CO10, ">= 1.20") -> 1 | CP1: =MAX(CO7:CO9) -> 1.363636364 | CY1: > .35 | CZ1: =COUNTIF(CY7:CY17,"> .35") -> 3 | DA1: =COUNTIF(CY7:CY12,"> .35") -> 2
B2: 12:00:00 | C2: 12:00:00 | D2: Runners | E2: =COUNTIF(C7:C31,">0") -> 8 | F2: =COUNTIF(K7:K25,"<10") -> 3 | G2: 2013-04-03 | J2: CN49 | K2: =CN49 -> 1 | L2: Min%2 | M2: =SMALL(AH33:AO55,2) -> -0.2048192771 | N2: =VLOOKUP(M2,$AG$33:$AP$57,10,FALSE) ->  | P2: K9 =$4-$4.90 | AB2: =IF(ISERROR(SUM(1/AO2*0.85)),"",SUM(1/AO2*0.85)) ->  | AZ2: =BE2 -> 00:00:00 | BA2: SANDOWN | BC2: MR 1 | BD2: PAYING | BZ2: Pool | CA2: =G1 -> 11936 | CE2: =COUNTIF(P7:P10,"<-.245") -> 1 | CF2: =COUNTIF(P11:P18,"<-.295") -> 0 | CG2: =SUM(CE2+CF2) -> 1 | CN2: 120%Plus | CO2: =COUNTIF(CO7:CO10, ">= 1.20") -> 1 | CP2: =MAX(CO7:CO10) -> 1.363636364 | CX2: =COUNTIF(K7:K18,"<10") -> 3 | CY2: >.5 | CZ2: =COUNTIF(CY7:CY17,"> .5") -> 3 | DA2: =COUNTIF(CY7:CY12,"> .5") -> 2
C3: =C2+TIME(3,0,0) -> 15:00:00 | D3: =SUM(MAX(A7:A32)-E2) -> 2 | E3: =COUNTIF(K7:K31,">0") -> 8 | F3: =COUNTIF(K7:K25,"<20") -> 7 | G3: =CG2 -> 1 | H3: =CA30 -> 1 | L3: Min%3 | M3: =SMALL(AH33:AO55,3) -> -0.1509433962 | N3: =VLOOKUP(M3,$AG$33:$AP$57,10,FALSE) ->  | P3: Proven x 20 | CF3: =SUM(COUNTIF(CF7:CF9,">= 3")- COUNTIF(CF7:CF9,">50")) -> 3 | CN3: 130% plus | CO3: =COUNTIF(CO7:CO10, ">= 1.30") -> 1 | CP3: =MAX(CO7:CO12) -> 1.725274725 | CR3: < 2.5 | CS3: =COUNTIF(CS7:CS16,"<2.5") -> 5 | CX3: =COUNTIF(K7:K15,"<20") -> 7 | CY3: >.995 | CZ3: =COUNTIF(CY7:CY17,"> .995") -> 1 | DA3: =COUNTIF(CY7:CY12,"> .995") -> 1
C4: =C3-TIME(0,30,0) -> 14:30:00 | D4: =C3-TIME(0,20,0) -> 14:40:00 | E4: =C3-TIME(0,15,0) -> 14:45:00 | F4: =C3-TIME(0,10,0) -> 14:50:00 | G4: =C3-TIME(0,8,0) -> 14:52:00 | H4: =C3-TIME(0,6,0) -> 14:54:00 | I4: =C3-TIME(0,4,0) -> 14:56:00 | J4: =C3-TIME(0,2,0) -> 14:58:00 | K4: =C3-TIME(0,1,0) -> 14:59:00 | L4: Min%4 | M4: =SMALL(AH33:AO55,4) -> -0.1451612903 | N4: =VLOOKUP(M4,$AG$33:$AP$57,10,FALSE) ->  | P4: BK73K83K94EOL m192 | S4: DivGraph% | T4: This range is built from the range to the left which is not sorted | AE4: This download is not sorted and is used to build the graph | BA4: 2013-04-03 | BB4: (HILLSIDE) MAIDEN PLATE | BE4: Fixed Price | CA4: Row Num | CD4: Rank | CE4: Acol | CF4: K | CG4: LMS | CH4: N | CI4: P | CJ4: P % | CK4: K% | CL4: 2min col | CO4: =COUNTIF(CO7:CO9, ">=1.") -> 2
C5: 30 | D5: 20 | E5: 15 | F5: 10 | G5: 8 | H5: 6 | I5: 4 | J5: 2 | K5: 1 | L5: Div Ch | M5: Rank | N5: Gain | AG5: 30 | AH5: 20 | AI5: 15 | AJ5: 10 | AK5: 8 | AL5: 6 | AM5: 4 | AN5: 2 | AO5: 1 | AQ5: Max | AR5: Min | AS5: % Diff | AT5: % Stand Out | AY5: LMS | AZ5: Total | CA5: =MAX(CA7:CA9) -> 11 | CF5: =MAX(CF7:CF9) -> 14.9 | CG5: =COUNTIF(CG7:CG9,"<0") -> 1 | CL5: =COUNTIF(CL7:CL9,"<0") -> 2 | CN5: Divers | CQ5: Divided by K7 value | CX5: =COUNTIF(CX7:CX10,">=3") -> 2 | CZ5: K8block | DA5: =COUNTIF(Q8:Q10,"<=4") -> 2
A6: scr | C6: =COUNTIF(D43:D64,"< -.38") -> 0 | D6: =MIN(D43:D64) -> -0.04347826087 | F6: =MIN(F43:F64) -> -0.2048192771 | I6: =MIN(G43:I64) -> -0.1451612903 | J6: =MIN(J43:J64) -> -0.1509433962 | L6: =COUNTIF(L7:L17,"<0") -> 1 | M6: by gain | N6: =COUNTIF(P7:P17,"< -.195") -> 1 | T6: 30 | U6: 20 | V6: 15 | W6: 10 | X6: 8 | Y6: 6 | Z6: 4 | AA6: 2 | AB6: 1 | AS6: under .65 | AT6: No | AU6: % | AY6: Gap | BA6: RADIO TAB | BB6: 8-1-6-9 | BC6: BRENDAN TUPPER | BD6: 8-1-6-3 | BE6: Late Mail 8 | BF6: 1000M | BG6: OVERCAST | BH6: SLOW(7) | CA6: =MAX(CA7:CA10) -> 11 | CF6: =MAX(CF7:CF10) -> 14.9 | CG6: =COUNTIF(CG7:CG10,"<0") -> 1 | CL6: =COUNTIF(CL7:CL10,"<0") -> 2 | CZ6: =MAX(Q8:Q10) -> 5 | DA6: =COUNTIF(L8:L10,"< 0") -> 0 | DD6: RADIO TAB | DE6: 8-1-6-9 | DF6: BRENDAN TUPPER | DG6: 8-1-6-3
A7: 1 | C7: 7.4 | D7: 8 | E7: 8.3 | F7: 6.6 | G7: 6.6 | H7: 6.2 | I7: 5.3 | J7: 4.5 | K7: 3 | L7: -0.3333333333 | M7: =IF(ISERROR(RANK(N7:N7,N7:N31,4)),"",(RANK(N7,N7:N31,4))) -> 1 | N7: =IF(ISERROR(SUM(K7/(MAX(C7:J7)))),"",SUM(K7/(MAX(C7:J7)))) -> 0.3614457831 | O7: =CY7 -> 0 | P7: -0.8948633576 | Q7: =IF(ISERROR(RANK(P7:P7,P7:P26,2)),"",(RANK(P7,P7:P26,2))) -> 1 | R7: =A7 -> 1 | S7: =AF7 -> 1 | T7: =IF(ISERROR(SUM(1/AG7*0.85)),"",SUM(1/AG7*0.85)) -> 0.1148648649 | U7: 0.10625 | V7: 0.1024096386 | W7: 0.1287878788 | X7: 0.1287878788 | Y7: 0.1370967742 | Z7: 0.1603773585 | AA7: 0.1888888889 | AB7: =IF(ISERROR(SUM(1/AO7*0.85)),"",SUM(1/AO7*0.85)) -> 0.2833333333 | AD7: =IF(ISBLANK(AG7),"",AG7) -> 7.4 | AF7: 1 | AG7: 7.4 | AH7: 8 | AI7: 8.3 | AJ7: 6.6 | AK7: 6.6 | AL7: 6.2 | AM7: 5.3 | AN7: 4.5 | AO7: 3 | AQ7: =MAX(AG7:AO7) -> 8.3 | AR7: =MIN(AG7:AO7) -> 3 | AS7: =SUM(AR7/AQ7) -> 0.3614457831 | AT7: =INDEX($Ac$7:$Ac$30,MATCH(aq7,$ac$1:$al$30,0)) | AU7: =MIN(#REF!) ->  | AX7: 1 | BY7: =VLOOKUP(CE7, $A$7:$P$26, 3,FALSE) -> 7.4 | BZ7: =VLOOKUP(CE7, $A$7:$P$26, 13,FALSE) -> 1 | CA7: =MATCH(CE7,A7:A26,0)+6 -> 7 | CD7: 1 | CE7: =VLOOKUP(CD7, $Q$7:$R$26, 2,FALSE) -> 1 | CF7: =VLOOKUP(CE7, $A$7:$K$26, 11,FALSE) -> 3 | CG7: =VLOOKUP(CE7, $A$7:$L$26, 12,FALSE) -> -0.3333333333 | CH7: =VLOOKUP(CE7, $A$7:$N$26, 14,FALSE) -> 0.3614457831 | CI7: =VLOOKUP(CE7, $A$7:$P$26, 16,FALSE) -> -0.8948633576 | CJ7: =SUM(CI7/CI8-1) -> 6.381869448 | CK7: =SUM(CF7/CF8-1) -> -0.387755102 | CL7: =VLOOKUP(CE7, $A$43:$K$60, 10,FALSE) -> -0.1509433962 | CM7: =VLOOKUP(CE7, $CV$7:$CY$17, 4,FALSE) -> 0 | CN7: =A7 -> 1 | CO7: =SUM(MAX(J7:K7)/MIN(C7:F7)) -> 0.6818181818 | CQ7: K7 | CR7: =K7 -> 3 | CS7: 0 | CV7: =A7 -> 1 | CW7: =K7 -> 3 | CX7: =SUM(CW8-CW7) -> 0 | CY7: =IF(ISERROR(SUM(CX7/CW7)),"",(SUM(CX7/CW7))) -> 0 | DA7: =AF7 -> 1 | DB7: 1.3
A8: 8 | C8: 2.3 | D8: 2.2 | E8: 2.3 | F8: 2.3 | G8: 2.3 | H8: 2.3 | I8: 2.3 | J8: 2.5 | K8: 3 | L8: 0.2 | M8: =IF(ISERROR(RANK(N8,N7:N31,4)),"",(RANK(N8,N7:N31,4))) -> 8 | N8: =IF(ISERROR(SUM(K8/(MAX(C8:J8)))),"",SUM(K8/(MAX(C8:J8)))) -> 1.2 | O8: =CY8 -> 0.6333333333 | P8: -0.04347826087 | Q8: =IF(ISERROR(RANK(P8,P7:P26,2)),"",(RANK(P8,P7:P26,2))) -> 5 | R8: 8 | S8: 2 | T8: 0.04028436019 | U8: 0.04009433962 | V8: 0.04047619048 | W8: 0.03777777778 | X8: 0.0364806867 | Y8: 0.03526970954 | Z8: 0.03281853282 | AA8: 0.03269230769 | AB8: 0.02861952862 | AD8: =IF(ISBLANK(AG8),"",AG8) -> 21.1 | AF8: 2 | AG8: 21.1 | AH8: 21.2 | AI8: 21 | AJ8: 22.5 | AK8: 23.3 | AL8: 24.1 | AM8: 25.9 | AN8: 26 | AO8: 29.7 | AQ8: =MAX(AG8:AO8) -> 29.7 | AR8: =MIN(AG8:AO8) -> 21 | AS8: =SUM(AR8/AQ8) -> 0.7070707071 | AX8: 2 | AY8: =SUM(K8/K7-1) -> 0 | BY8: =VLOOKUP(CE8, $A$7:$P$26, 3,FALSE) -> 5 | BZ8: =VLOOKUP(CE8, $A$7:$P$26, 13,FALSE) -> 2 | CA8: =MATCH(CE8,A7:A26,0)+6 -> 9 | CB8: =K8-K7 -> 0 | CC8: =CB8/K7 -> 0 | CD8: 2 | CE8: =VLOOKUP(CD8, $Q$7:$R$26, 2,FALSE) -> 6 | CF8: =VLOOKUP(CE8, $A$7:$K$26, 11,FALSE) -> 4.9 | CG8: =VLOOKUP(CE8, $A$7:$L$26, 12,FALSE) -> 0.0652173913 | CH8: =VLOOKUP(CE8, $A$7:$N$26, 14,FALSE) -> 0.98 | CI8: =VLOOKUP(CE8, $A$7:$P$26, 16,FALSE) -> -0.1212244898 | CJ8: =SUM(CI8/CI9-1) -> 0.1641671966 | CK8: =SUM(CF8/CF9-1) -> -0.6711409396 | CL8: -0.0612244898 | CM8: =VLOOKUP(CE8, $CV$7:$CY$17, 4,FALSE) -> 1.285714286 | CN8: =A8 -> 8 | CO8: =SUM(MAX(J8:K8)/MIN(C8:F8)) -> 1.363636364 | CQ8: K8 | CR8: =K8 -> 3 | CS8: =K8/K7 -> 1 | CV8: =A8 -> 8 | CW8: =K8 -> 3 | CX8: =SUM(CW9-CW8) -> 1.9 | CY8: =IF(ISERROR(SUM(CX8/CW8)),"",(SUM(CX8/CW8))) -> 0.6333333333 | DA8: 2 | DB8: 5.1 | DD8: No. | DF8: Name | DG8: 09:57:00 | DH8: Win
A9: 6 | C9: 5 | D9: 4.8 | E9: 4.9 | F9: 5 | G9: 5 | H9: 4.9 | I9: 4.9 | J9: 4.6 | K9: 4.9 | L9: 0.0652173913 | M9: =IF(ISERROR(RANK(N9,N7:N31,4)),"",(RANK(N9,N7:N31,4))) -> 2 | N9: 0.98 | O9: 1.285714286 | P9: -0.1212244898 | Q9: =IF(ISERROR(RANK(P9,P7:P26,2)),"",(RANK(P9,P7:P26,2))) -> 2 | R9: 6 | S9: 3 | T9: 0.085 | U9: 0.07943925234 | V9: 0.08673469388 | W9: 0.08415841584 | X9: 0.085 | Y9: 0.085 | Z9: 0.08173076923 | AA9: 0.08095238095 | AB9: 0.07589285714 | AD9: 10 | AF9: 3 | AG9: 10 | AH9: 10.7 | AI9: 9.8 | AJ9: 10.1 | AK9: 10 | AL9: 10 | AM9: 10.4 | AN9: 10.5 | AO9: 11.2 | AQ9: 11.2 | AR9: 9.8 | AS9: 0.875 | AT9: =INDEX($A$1:$A$30,MATCH(H2,$C$1:$C$30,0)) | AX9: 3 | AY9: =SUM(K9/K8-1) -> 0.6333333333 | AZ9: =SUM(AY8:AY9) -> 0.6333333333 | BG9: SCR 5 10 | BY9: =VLOOKUP(CE9, $A$7:$P$26, 3,FALSE) -> 10.8 | BZ9: =VLOOKUP(CE9, $A$7:$P$26, 13,FALSE) -> 7 | CA9: =MATCH(CE9,A7:A26,0)+6 -> 11 | CB9: =K9-K8 -> 1.9 | CC9: =CB9/K8 -> 0.6333333333 | CD9: 3 | CE9: 4 | CF9: 14.9 | CG9: 0.192 | CH9: 1.192 | CI9: -0.1041297935 | CJ9: 0.1076089355 | CK9: 0.3303571429 | CL9: 0.0775862069 | CM9: =VLOOKUP(CE9, $CV$7:$CY$17, 4,FALSE) -> 0.05369127517 | CN9: 6 | CO9: 1.020833333 | CQ9: K9 | CR9: 4.9 | CS9: =K9/K7 -> 1.633333333 | CV9: 6 | CW9: 4.9 | CX9: 6.3 | CY9: 1.285714286 | DA9: 3 | DB9: 2.3 | DD9: 1 | DF9: HALCYON GAZE | DG9: 5.8 | DH9: 8.7
A10: 3 | C10: 10 | D10: 10.7 | E10: 9.8 | F10: 10.1 | G10: 10 | H10: 10 | I10: 10.4 | J10: 10.5 | K10: 11.2 | L10: 0.06666666667 | M10: =IF(ISERROR(RANK(N10,N7:N31,4)),"",(RANK(N10,N7:N31,4))) -> 3 | N10: 1.046728972 | O10: 0.3303571429 | P10: -0.09401313963 | Q10: =IF(ISERROR(RANK(P10,P7:P26,2)),"",(RANK(P10,P7:P26,2))) -> 4 | R10: 3 | S10: 4 | T10: 0.0787037037 | U10: 0.07522123894 | V10: 0.08095238095 | W10: 0.07391304348 | X10: 0.07083333333 | Y10: 0.07083333333 | Z10: 0.07327586207 | AA10: 0.068 | AB10: 0.05704697987 | AD10: 10.8 | AF10: 4 | AG10: 10.8 | AH10: 11.3 | AI10: 10.5 | AJ10: 11.5 | AK10: 12 | AL10: 12 | AM10: 11.6 | AN10: 12.5 | AO10: 14.9 | AQ10: 14.9 | AR10: 10.5 | AS10: 0.7046979866 | AX10: 4 | AY10: =SUM(K10/K9-1) -> 1.285714286 | AZ10: =SUM(AY8:AY10) -> 1.919047619 | BA10: 4 | BC10: APPOINT | BD10: 18.8 | BE10: 3.4 | BY10: =VLOOKUP(CE10, $A$7:$P$26, 3,FALSE) -> 10 | BZ10: =VLOOKUP(CE10, $A$7:$P$26, 13,FALSE) -> 3 | CA10: =MATCH(CE10,A7:A26,0)+6 -> 10 | CB10: 6.3 | CC10: 1.285714286 | CD10: 4 | CE10: 3 | CF10: 11.2 | CG10: 0.06666666667 | CH10: 1.046728972 | CI10: -0.09401313963 | CJ10: 1.162302212 | CK10: 2.733333333 | CL10: 0.009615384615 | CM10: =VLOOKUP(CE10, $CV$7:$CY$17, 4,FALSE) -> 0.3303571429 | CN10: 3 | CO10: 1.142857143 | CQ10: K10 | CR10: 11.2 | CS10: =K10/K7 -> 3.733333333 | CT10: limit 1.5 | CV10: 3 | CW10: 11.2 | CX10: 3.7 | CY10: 0.3303571429 | DA10: 4 | DB10: 3.2 | DD10: 2 | DF10: RUNS FOR FUN | DG10: 22.6 | DH10: 23.3
A11: 4 | C11: 10.8 | D11: 11.3 | E11: 10.5 | F11: 11.5 | G11: 12 | H11: 12 | I11: 11.6 | J11: 12.5 | K11: 14.9 | L11: 0.192 | M11: =IF(ISERROR(RANK(N11,N7:N31,4)),"",(RANK(N11,N7:N31,4))) -> 7 | N11: 1.192 | O11: 0.05369127517 | P11: -0.1041297935 | Q11: =IF(ISERROR(RANK(P11,P7:P26,2)),"",(RANK(P11,P7:P26,2))) -> 3 | R11: 4 | S11: 5 | AF11: 5 | AQ11: 0 | AR11: 0 | AX11: 5 | AY11: 0.3303571429 | AZ11: =SUM(AY8:AY11) -> 2.249404762 | BA11: 6 | BC11: DESIGN FOR LIFE | BE11: 1.4 | BY11: =VLOOKUP(CE11, $A$7:$P$26, 3,FALSE) -> 2.3 | BZ11: =VLOOKUP(CE11, $A$7:$P$26, 13,FALSE) -> 8 | CA11: =MATCH(CE11,A7:A26,0)+6 -> 8 | CB11: 3.7 | CC11: 0.3303571429 | CD11: 5 | CE11: 8 | CF11: 3 | CG11: 0.2 | CH11: 1.2 | CI11: -0.04347826087 | CJ11: 0.1304347826 | CK11: -0.8089171975 | CL11: 0.08695652174 | CM11: =VLOOKUP(CE11, $CV$7:$CY$17, 4,FALSE) -> 0.6333333333 | CN11: 4 | CO11: 1.419047619 | CQ11: K11 | CR11: 14.9 | CS11: =K11/K7 -> 4.966666667 | CV11: 4 | CW11: 14.9 | CX11: 0.8 | CY11: 0.05369127517 | DA11: 5 | DD11: 3 | DF11: TAP IN BIRDIE | DG11: 7.8 | DH11: 10.1
A12: 9 | C12: 9.1 | D12: 10.4 | E12: 10 | F12: 10.3 | G12: 10.5 | H12: 10.7 | I12: 11.9 | J12: 13.6 | K12: 15.7 | L12: 0.1544117647 | M12: =IF(ISERROR(RANK(N12,N7:N31,4)),"",(RANK(N12,N7:N31,4))) -> 5 | N12: 1.154411765 | O12: 0.2356687898 | P12: -0.03846153846 | Q12: =IF(ISERROR(RANK(P12,P7:P26,2)),"",(RANK(P12,P7:P26,2))) -> 6 | R12: 9 | S12: 6 | T12: 0.17 | U12: 0.1770833333 | V12: 0.1734693878 | W12: 0.17 | X12: 0.17 | Y12: 0.1734693878 | Z12: 0.1734693878 | AA12: 0.1847826087 | AB12: 0.1734693878 | AD12: 5 | AF12: 6 | AG12: 5 | AH12: 4.8 | AI12: 4.9 | AJ12: 5 | AK12: 5 | AL12: 4.9 | AM12: 4.9 | AN12: 4.6 | AO12: 4.9 | AQ12: 5 | AR12: 4.6 | AS12: 0.92 | AX12: 6 | AY12: 0.05369127517 | AZ12: =SUM(AY8:AY12) -> 2.303096037 | BA12: 3 | BC12: TAP IN BIRDIE | BE12: 1.7 | CA12: =MATCH(CE12,A7:A26,0)+6 -> 12 | CB12: 0.8 | CC12: 0.05369127517 | CD12: 6 | CE12: 9 | CF12: 15.7 | CG12: 0.1544117647 | CH12: 1.154411765 | CI12: -0.03846153846 | CJ12: 1.906179067 | CK12: -0.1907216495 | CL12: 0.1428571429 | CN12: 9 | CO12: 1.725274725 | CQ12: K12 | CR12: 15.7 | CS12: =K12/K7 -> 5.233333333 | CV12: 9 | CW12: 15.7 | CX12: 3.7 | CY12: 0.2356687898 | DA12: 6 | DB12: 1.4 | DD12: 4 | DF12: APPOINT | DG12: 13.7 | DH12: 9.9
A13: 7 | C13: 13.8 | D13: 13.7 | E13: 14.3 | F13: 15 | G13: 15.5 | H13: 15.5 | I13: 16.7 | J13: 16.6 | K13: 19.4 | L13: 0.1686746988 | M13: =IF(ISERROR(RANK(N13,N7:N31,4)),"",(RANK(N13,N7:N31,4))) -> 6 | N13: 1.161676647 | O13: 0.5309278351 | P13: -0.01323440076 | Q13: =IF(ISERROR(RANK(P13,P7:P26,2)),"",(RANK(P13,P7:P26,2))) -> 7 | R13: 7 | S13: =AF13 -> 7 | T13: 0.0615942029 | U13: 0.06204379562 | V13: 0.05944055944 | W13: 0.05666666667 | X13: 0.05483870968 | Y13: 0.05483870968 | Z13: 0.05089820359 | AA13: 0.05120481928 | AB13: 0.04381443299 | AD13: 13.8 | AF13: 7 | AG13: 13.8 | AH13: 13.7 | AI13: 14.3 | AJ13: 15 | AK13: 15.5 | AL13: 15.5 | AM13: 16.7 | AN13: 16.6 | AO13: 19.4 | AQ13: 19.4 | AR13: 13.7 | AS13: 0.706185567 | AX13: 7 | AY13: 0.2356687898 | AZ13: =SUM(AY8:AY13) -> 2.538764827 | CA13: =MATCH(CE13,A7:A26,0)+6 -> 13 | CB13: 3.7 | CC13: 0.2356687898 | CD13: 7 | CE13: 7 | CF13: 19.4 | CG13: 0.1686746988 | CH13: 1.161676647 | CI13: -0.01323440076 | CJ13: 0.402846481 | CK13: -0.3468013468 | CL13: -0.005988023952 | CN13: 7 | CO13: 1.416058394 | CQ13: K13 | CR13: 19.4 | CS13: =K13/K7 -> 6.466666667 | CV13: 7 | CW13: 19.4 | CX13: 10.3 | CY13: 0.5309278351 | DA13: 7 | DB13: 4.5 | DD13: 5 | DF13: BUGSY
A14: 2 | C14: 21.1 | D14: 21.2 | E14: 21 | F14: 22.5 | G14: 23.3 | H14: 24.1 | I14: 25.9 | J14: 26 | K14: 29.7 | L14: 0.1423076923 | M14: =IF(ISERROR(RANK(N14,N7:N31,4)),"",(RANK(N14,N7:N31,4))) -> 4 | N14: 1.142307692 | O14: -1 | P14: -0.009433962264 | Q14: =IF(ISERROR(RANK(P14,P7:P26,2)),"",(RANK(P14,P7:P26,2))) -> 8 | R14: 2 | S14: 8 | T14: 0.3695652174 | U14: 0.3863636364 | V14: 0.3695652174 | W14: 0.3695652174 | X14: 0.3695652174 | Y14: 0.3695652174 | Z14: 0.3695652174 | AA14: 0.34 | AB14: 0.2833333333 | AD14: 2.3 | AF14: 8 | AG14: 2.3 | AH14: 2.2 | AI14: 2.3 | AJ14: 2.3 | AK14: 2.3 | AL14: 2.3 | AM14: 2.3 | AN14: 2.5 | AO14: 3 | AQ14: 3 | AR14: 2.2 | AS14: 0.7333333333 | AX14: 8 | AY14: 0.5309278351 | AZ14: =SUM(AY8:AY14) -> 3.069692662 | BA14: QN | BB14: 4* 6 | BC14: 44.7 | BG14: TF | BH14: 4* 6* 3 | BI14: 683.4 | CA14: =MATCH(CE14,A7:A26,0)+6 -> 14 | CB14: 10.3 | CC14: 0.5309278351 | CD14: 8 | CE14: 2 | CF14: 29.7 | CG14: 0.1423076923 | CH14: 1.142307692 | CI14: -0.009433962264 | CL14: 0.003861003861 | CN14: 2 | CO14: 1.414285714 | CQ14: K14 | CR14: 29.7 | CS14: =K14/K7 -> 9.9 | CV14: 2 | CW14: 29.7 | CX14: -29.7 | CY14: -1 | DA14: 8 | DB14: 1.3 | DD14: 6 | DF14: DESIGN FOR LIFE | DG14: 5.7 | DH14: 3.8
A15: 5 | M15: =IF(ISERROR(RANK(N15,N7:N31,4)),"",(RANK(N15,N7:N31,4))) ->  | P15: 0 | Q15: =IF(ISERROR(RANK(P15,P7:P26,2)),"",(RANK(P15,P7:P26,2))) -> 9 | R15: 5 | S15: 9 | T15: 0.09340659341 | U15: 0.08173076923 | V15: 0.085 | W15: 0.08252427184 | X15: 0.08095238095 | Y15: 0.07943925234 | Z15: 0.07142857143 | AA15: 0.0625 | AB15: 0.05414012739 | AD15: 9.1 | AF15: 9 | AG15: 9.1 | AH15: 10.4 | AI15: 10 | AJ15: 10.3 | AK15: 10.5 | AL15: 10.7 | AM15: 11.9 | AN15: 13.6 | AO15: 15.7 | AQ15: 15.7 | AR15: 9.1 | AS15: 0.5796178344 | AX15: 9 | AY15: -1 | AZ15: =SUM(AY8:AY15) -> 2.069692662 | BA15: EX | BB15: 4* 6 | BC15: 127.7 | BG15: A2 | BH15: 4* 6 | BI15: 14.7 | CA15: =MATCH(CE15,A7:A26,0)+6 -> 15 | CB15: -29.7 | CC15: -1 | CD15: 9 | CE15: 5 | CF15: 0 | CG15: 0 | CI15: 0 | CN15: 5 | CQ15: K15 | CR15: 0 | CS15: =K15/K7 -> 0 | CV15: 5 | CW15: 0 | CX15: 0 | DA15: 9 | DB15: 4.3 | DD15: 7 | DF15: HE'S DIRT CHEAP | DG15: 15.9 | DH15: 14.8
A16: 10 | M16: =IF(ISERROR(RANK(N16,N7:N31,4)),"",(RANK(N16,N7:N31,4))) ->  | P16: 0 | Q16: =IF(ISERROR(RANK(P16,P7:P26,2)),"",(RANK(P16,P7:P26,2))) -> 9 | R16: 10 | S16: 10 | AF16: 10 | AQ16: 0 | AR16: 0 | AX16: 10 | AZ16: =SUM(AY8:AY16) ->  | BA16: F4 | BB16: 4* 6* 3* 7 | BC16: 3074.8 | BH16: 3* 4 | BI16: 26.8 | CA16: =MATCH(CE16,A7:A26,0)+6 ->  | CB16: 0 | CD16: 10 | CN16: 10 | CQ16: K16 | CR16: 0 | CS16: =K16/K7 -> 0 | CV16: 10 | CW16: 0 | CX16: 0 | DA16: 10 | DD16: 8 | DF16: TUNED IN | DG16: 2.3 | DH16: 2.4
M17: =IF(ISERROR(RANK(N17,N7:N31,4)),"",(RANK(N17,N7:N31,4))) ->  | P17: 0 | Q17: =IF(ISERROR(RANK(P17,P7:P26,2)),"",(RANK(P17,P7:P26,2))) -> 9 | R17: 0 | S17: 0 | AQ17: 0 | AR17: 0 | AX17: 11 | AZ17: =SUM(AY8:AY17) ->  | BH17: 3* 6 | BI17: 4.3 | CA17: =MATCH(CE17,A7:A26,0)+6 ->  | CB17: 0 | CD17: 11 | CN17: 0 | CV17: 0 | CW17: 0 | CX17: 0 | DA17: 0 | DD17: 9 | DF17: COURAGEOUS GYPSY | DG17: 11.5 | DH17: 12
M18: =IF(ISERROR(RANK(N18,N7:N31,4)),"",(RANK(N18,N7:N31,4))) ->  | O18: =IF(ISERROR(SUM(J18/(MAX(C18:I18)))),"",SUM(J18/(MAX(C18:I18)))) ->  | P18: 0 | Q18: =IF(ISERROR(RANK(P18,P7:P26,2)),"",(RANK(P18,P7:P26,2))) -> 9 | R18: 0 | S18: 0 | AQ18: 0 | AR18: 0 | AX18: 12 | AZ18: =SUM(AY8:AY18) ->  | CA18: =MATCH(CE18,A7:A26,0)+6 ->  | CB18: 0 | CD18: 12 | CN18: 0 | CQ18: Divided by K8 value | CV18: 0 | CW18: 0 | DA18: 0 | DD18: 10 | DF18: REGAL MOVEMENT
M19: =IF(ISERROR(RANK(N19,N7:N31,4)),"",(RANK(N19,N7:N31,4))) ->  | P19: 0 | Q19: =IF(ISERROR(RANK(P19,P7:P26,2)),"",(RANK(P19,P7:P26,2))) -> 9 | R19: 0 | S19: 0 | T19: =IF(ISERROR(SUM(1/AG19*0.85)),"",SUM(1/AG19*0.85)) ->  | U19: =IF(ISERROR(SUM(1/AH19*0.85)),"",SUM(1/AH19*0.85)) ->  | AQ19: 0 | AR19: 0 | AX19: 13 | AZ19: =SUM(AY8:AY19) ->  | BA19: No. | BC19: Name | BD19: 11:55:00 | BE19: Win | BF19: Plc | BH19: Rider | BI19: Bar | BJ19: Wght | BL19: Form | BM19: L3S | BN19: Rtng | CA19: =MATCH(CE7,A7:A26,0)+6 -> 7 | CB19: 0 | CD19: 13 | CN19: 0 | CQ19: K7 | CR19: =K7 -> 3 | DA19: 0
M20: =IF(ISERROR(RANK(N20,N7:N31,4)),"",(RANK(N20,N7:N31,4))) ->  | P20: 0 | Q20: =IF(ISERROR(RANK(P20,P7:P26,2)),"",(RANK(P20,P7:P26,2))) -> 9 | R20: 0 | S20: 0 | AQ20: 0 | AR20: 0 | AX20: 14 | AZ20: =SUM(AY8:AY20) ->  | BA20: 1 | BC20: HALCYON GAZE | BD20: 5.3 | BE20: 2.6 | BF20: 1.5 | BH20: B RAWILLER | BI20: 2 | BJ20: 58.5 | BN20: 93 | CA20: =MATCH(CE20,A7:A26,0)+6 ->  | CB20: 0 | CD20: 14 | CN20: 0 | CQ20: K8 | CR20: 3 | DA20: 0 | DD20: WN | DE20: 1532 | DF20: QN | DG20: 181 | DH20: TF
M21: =IF(ISERROR(RANK(N21,N7:N31,4)),"",(RANK(N21,N7:N31,4))) ->  | P21: 0 | Q21: =IF(ISERROR(RANK(P21,P7:P26,2)),"",(RANK(P21,P7:P26,2))) -> 9 | R21: 0 | S21: 0 | AQ21: 0 | AR21: 0 | AX21: 15 | AZ21: =SUM(AY8:AY21) ->  | BA21: 2 | BC21: RUNS FOR FUN | BD21: 26.3 | BE21: 32.5 | BF21: 4.6 | BH21: C ROBERTSON | BI21: 8 | BJ21: 58.5 | BM21: 3X7 | BN21: 85 | CA21: =MATCH(CE21,A7:A26,0)+6 ->  | CB21: 0 | CD21: 15 | CN21: 0 | CQ21: K9 | CR21: 4.9 | CS21: =K9/K8 -> 1.633333333 | CV21: K | CX21: No of Same | DA21: 0 | DD21: PL | DE21: 785 | DF21: EX | DG21: 82 | DH21: F4
M22: =IF(ISERROR(RANK(N22,N7:N31,4)),"",(RANK(N22,N7:N31,4))) ->  | P22: 0 | Q22: =IF(ISERROR(RANK(P22,P7:P26,2)),"",(RANK(P22,P7:P26,2))) -> 9 | R22: 0 | S22: 0 | AX22: 16 | AZ22: =SUM(AY8:AY22) ->  | BA22: 3 | BC22: TAP IN BIRDIE | BD22: 10.7 | BE22: 10.9 | BF22: 1.7 | BH22: L MEECH | BI22: 4 | BJ22: 58.5 | BM22: 26X | BN22: 92 | CA22: =MATCH(CE7,A7:A26,0)+6 -> 7 | CB22: 0 | CD22: 16 | CN22: 0 | CQ22: K10 | CR22: 11.2 | CS22: =K10/K8 -> 3.733333333 | CV22: V | CX22: Values | DA22: 0 | DF22: A2 | DG22: 62
M23: =IF(ISERROR(RANK(N23,N7:N31,4)),"",(RANK(N23,N7:N31,4))) ->  | P23: 0 | Q23: =IF(ISERROR(RANK(P23,P7:P26,2)),"",(RANK(P23,P7:P26,2))) -> 9 | R23: 0 | S23: 0 | AX23: 17 | AZ23: =SUM(AY8:AY23) ->  | BA23: 4 | BC23: APPOINT | BD23: 11.4 | BE23: 18.8 | BF23: 3.4 | BH23: D GAUCI | BI23: 10 | BJ23: 58 | BM23: 0X | BN23: 100 | CA23: =MATCH(CE23,A7:A26,0)+6 ->  | CB23: 0 | CD23: 17 | CN23: 0 | CQ23: K11 | CR23: 14.9 | CS23: =K11/K8 -> 4.966666667 | CV23: 3 | CW23: =COUNTIF(K7:K18, "<3") -> 0 | DA23: 0
M24: =IF(ISERROR(RANK(N24,N7:N31,4)),"",(RANK(N24,N7:N31,4))) ->  | P24: 0 | Q24: =IF(ISERROR(RANK(P24,P7:P26,2)),"",(RANK(P24,P7:P26,2))) -> 9 | R24: 0 | AF24: =IF(ISERROR(VALUE(LEFT(AE24,FIND(".",AE24)-1))),"",VALUE(LEFT(AE24,FIND(".",AE24)-1))) ->  | AX24: 18 | AZ24: =SUM(AY8:AY24) ->  | BA24: 5 | BC24: BUGSY | BH24: SCRATCHED | BI24: 5 | CA24: =MATCH(CE24,A7:A26,0)+6 ->  | CB24: 0 | CD24: 18 | CN24: 0 | CQ24: K12 | CR24: 15.7 | CS24: =K12/K8 -> 5.233333333 | CV24: 4 | CW24: =COUNTIF(K7:K18, "<4") -> 2 | CX24: =CW25-CW24 -> 1 | DD24: << MR 1 2 3 4 5 6 7 8 DD/TT/QD XD Riders Fixed Price >>
M25: =IF(ISERROR(RANK(N25,N7:N31,4)),"",(RANK(N25,N7:N31,4))) ->  | P25: 0 | Q25: =IF(ISERROR(RANK(P25,P7:P26,2)),"",(RANK(P25,P7:P26,2))) -> 9 | R25: 0 | AX25: 19 | AZ25: =SUM(AY8:AY25) ->  | BA25: 6 | BC25: DESIGN FOR LIFE | BD25: 4.6 | BE25: 4.3 | BF25: 1.4 | BH25: D DUNN | BI25: 1 | BJ25: 58 | BM25: 52X | BN25: 96 | CA25: =MATCH(CE25,A7:A26,0)+6 ->  | CB25: 0 | CD25: 19 | CN25: 0 | CQ25: K13 | CR25: 19.4 | CS25: =K13/K8 -> 6.466666667 | CV25: 5 | CW25: =COUNTIF(K7:K18, "<5") -> 3 | CX25: =CW26-CW25 -> 0
M26: =IF(ISERROR(RANK(N26,N7:N31,4)),"",(RANK(N26,N7:N31,4))) ->  | P26: 0 | Q26: =IF(ISERROR(RANK(P26,P7:P26,2)),"",(RANK(P26,P7:P26,2))) -> 9 | R26: 0 | AX26: 20 | AZ26: =SUM(AY8:AY26) ->  | BA26: 7 | BC26: HE'S DIRT CHEAP | BD26: 16.9 | BE26: 28.5 | BF26: 5.6 | BH26: D YENDALL | BI26: 7 | BJ26: 58 | BM26: 8 | BN26: 89 | CA26: =MATCH(CE26,A7:A26,0)+6 ->  | CB26: 0 | CD26: 20 | CN26: 0 | CQ26: K14 | CR26: 29.7 | CS26: =K14/K8 -> 9.9 | CV26: 6 | CW26: =COUNTIF(K7:K18, "<6") -> 3 | CX26: =CW27-CW26 -> 0 | CZ26: LMS | DA26: Q col | DD26: Help | DE26: Gambling Advice | DF26: TAB Home | DG26: Refresh
M27: =IF(ISERROR(RANK(N27,N7:N31,4)),"",(RANK(N27,N7:N31,4))) ->  | P27: 0 | Q27: Sum Total Max -250 | BA27: 8 | BC27: TUNED IN | BD27: 2.4 | BE27: 3.3 | BF27: 1.4 | BH27: C WILLIAMS | BI27: 6 | BJ27: 58 | BM27: 23X | BN27: 97 | CQ27: K15 | CR27: 0 | CS27: =K15/K8 -> 0 | CV27: 7 | CW27: =COUNTIF(K7:K18, "<7") -> 3 | CX27: =CW28-CW27 -> 0 | CY27: 7,8 | CZ27: =COUNTIF(L7:L8,"< 0") -> 1 | DA27: =COUNTIF(Q7:Q8,"<=4") -> 1
M28: =IF(ISERROR(RANK(N28,N7:N31,4)),"",(RANK(N28,N7:N31,4))) ->  | P28: =SUMIF(D64:K64,"<0") -> 0 | Q28: Top 8 | BA28: 9 | BC28: COURAGEOUS GYPSY | BD28: 12.3 | BE28: 21.6 | BF28: 4.9 | BH28: A FORBES(A) | BI28: 3 | BJ28: 56.5 | BM28: 4X | BN28: 89 | CQ28: K16 | CR28: 0 | CS28: =K16/K8 -> 0 | CV28: 8 | CW28: =COUNTIF(K7:K18, "<8") -> 3 | CX28: 0 | CY28: 7,8,9 | CZ28: =COUNTIF(L7:L9,"< 0") -> 1 | DA28: =COUNTIF(Q7:Q9,"<=4") -> 2 | DD28: © Copyright UNiTAB Ltd | DE28: Created: Wed, 03 Apr 2013 10:33:25 Aust EST
M29: =IF(ISERROR(RANK(N29,N7:N31,4)),"",(RANK(N29,N7:N31,4))) ->  | P29: =SUMIF(D65:K65,"<0") -> 0 | Q29: =SUM(P7:P14) -> -1.318838943 | BA29: 10 | BC29: REGAL MOVEMENT | BH29: SCRATCHED | BI29: 9 | CA29: Col L | CB29: Rank | CD29: Rank | CE29: Acol | CF29: K | CG29: LMS | CH29: N | CI29: P | CJ29: Row No | CK29: Rank | CM29: No of LMS | CN29: =SUM(CN30:CN31) -> 1 | CO29: =SUM(CO30:CO31) -> 1 | CP29: =SUM(CP30:CP31) -> 1 | CQ29: =SUM(CQ30:CQ31) -> 1 | CV29: 9 | CW29: =COUNTIF(K7:K18, "<9") -> 3 | CX29: 0 | CY29: 9,10 | CZ29: =COUNTIF(L9:L10,"< 0") -> 0 | DA29: =COUNTIF(Q9:Q10,"<=4") -> 2
Q30: All of P | BZ30: no of LMS | CA30: =CN33 -> 1 | CM30: 7 to 10 | CN30: =COUNTIF(L7:L10,"<0") -> 1 | CO30: =COUNTIF(L7:L10,"<-.0925") -> 1 | CP30: =COUNTIF(L7:L10,"<-.195") -> 1 | CQ30: 1 | CV30: 10 | CW30: =COUNTIF(K7:K18, "<10") -> 3 | CX30: 0 | CY30: 11,12 | CZ30: =COUNTIF(L11:L12,"< 0") -> 0 | DA30: =COUNTIF(Q11:Q12,"<=4") -> 1
Q31: =SUM(P7:P31) -> -1.318838943 | AR31: =SUM(AR32/E3) -> -0.1648548679 | BA31: WN | BB31: 19497 | BC31: QN | BD31: 4061 | BE31: TF | BF31: 14672 | BZ31: 2min Col | CA31: =COUNTIF(J43:J60,"<0") -> 3 | CM31: 11 to 12 | CN31: =COUNTIF(L11:L12,"<0") -> 0 | CO31: =COUNTIF(L11:L12,"<-.0925") -> 0 | CP31: =COUNTIF(L11:L12,"<-.195") -> 0 | CQ31: 0 | CV31: 11 | CW31: =COUNTIF(K7:K18, "<11") -> 3 | CX31: 1 | CY31: 7 to 12 | CZ31: =COUNTIF(L7:L12,"< 0") -> 1 | DA31: =COUNTIF(Q7:Q12,"<=4") -> 4
AH32: 20 | AI32: 15 | AJ32: 10 | AK32: 8 | AL32: 6 | AM32: 4 | AN32: 2 | AO32: 1 | AP32: =COUNTIF(A33:AO57,"<0")/COUNT(AH33:AO57) -> 0.953125 | AR32: =SUM(AR33:AR60) -> -1.318838943 | BA32: PL | BB32: 6666 | BC32: EX | BD32: 2042 | BE32: F4 | BF32: 2618 | CA32: =K43 -> -0.3333333333 | CB32: =IF(ISERROR(RANK(CA32:CA32,CA32:CA51,2)),"",(RANK(CA32,CA32:CA51,2))) -> 1 | CC32: =A7 -> 1 | CD32: 1 | CE32: =VLOOKUP(CD32, $CB$32:$CC$51, 2,FALSE) -> 1 | CF32: =VLOOKUP(CE32, $A$7:$K$26, 11,FALSE) -> 3 | CG32: =VLOOKUP(CE32, $A$7:$L$26, 12,FALSE) -> -0.3333333333 | CH32: =VLOOKUP(CE32, $A$7:$N$26, 14,FALSE) -> 0.3614457831 | CI32: =VLOOKUP(CE32, $A$7:$P$26, 16,FALSE) -> -0.8948633576 | CJ32: =MATCH(CE32,A7:A26,0)+6 -> 7 | CK32: =VLOOKUP(CE32, $A$7:$Q$26, 17,FALSE) -> 1 | CM32: 13 to 18 | CN32: =COUNTIF(L13:L18,"<-.0001") -> 0 | CO32: =COUNTIF(L13:L18,"<-.0925") -> 0 | CP32: =COUNTIF(L13:L18,"<-.195") -> 0 | CQ32: =COUNTIF(L13:L18,"<-.0001") -> 0 | CV32: 12 | CW32: =COUNTIF(K7:K18, "<12") -> 4 | CX32: 0 | CY32: 8 to 12 | CZ32: =COUNTIF(L8:L12,"< 0") -> 0 | DA32: =COUNTIF(Q8:Q12,"<=4") -> 3
AF33: =AF7 -> 1 | AG33: =MIN(AH33:AO33) -> -0.3333333333 | AH33: =IF(ISERROR(SUM((AH7-AG7)/AG7)),"",SUM((AH7-AG7)/AG7)) -> 0.08108108108 | AI33: 0.0375 | AJ33: -0.2048192771 | AK33: 0 | AL33: -0.06060606061 | AM33: -0.1451612903 | AN33: -0.1509433962 | AO33: -0.3333333333 | AP33: =AF33 -> 1 | AQ33: =IF(ISERROR(SUM(AR7/AQ7)),"",SUM(AR7/AQ7)) -> 0.3614457831 | AR33: =SUMIF(AH33:AO33,"<0") -> -0.8948633576 | AS33: =MIN(AR33:AR57) -> -0.8948633576 | AT33: =VLOOKUP(AS33,$AR$33:$AU$57,4,FALSE) -> 1 | AU33: =AP33 -> 1 | BC33: A2 | BD33: 973 | CA33: =K44 -> 0.2 | CB33: =IF(ISERROR(RANK(CA33,CA32:CA51,2)),"",(RANK(CA33,CA32:CA51,2))) -> 8 | CC33: =A8 -> 8 | CD33: 2 | CE33: =VLOOKUP(CD33, $CB$32:$CC$51, 2,FALSE) -> 6 | CF33: =VLOOKUP(CE33, $A$7:$K$26, 11,FALSE) -> 4.9 | CG33: =VLOOKUP(CE33, $A$7:$L$26, 12,FALSE) -> 0.0652173913 | CH33: =VLOOKUP(CE33, $A$7:$N$26, 14,FALSE) -> 0.98 | CI33: =VLOOKUP(CE33, $A$7:$P$26, 16,FALSE) -> -0.1212244898 | CJ33: =MATCH(CE33,A7:A26,0)+6 -> 9 | CK33: =VLOOKUP(CE33, $A$7:$Q$26, 17,FALSE) -> 2 | CM33: Total | CN33: =SUM(CN30:CN32) -> 1 | CO33: =SUM(CO30:CO32) -> 1 | CP33: =SUM(CP30:CP32) -> 1 | CQ33: =SUM(CQ30:CQ32) -> 1 | CV33: 13 | CW33: =COUNTIF(K7:K18, "<13") -> 4 | CX33: 0
C34: =MIN(C7:E7) -> 7.4 | D34: =G34/C34 -> 0.8918918919 | E34: =D34+J34 -> 3.091891892 | G34: =MAX(F7:I7) -> 6.6 | J34: =G34/K34 -> 2.2 | K34: =MIN(J7:K7) -> 3 | AF34: 2 | AG34: =MIN(AH34:AO34) -> -0.009433962264 | AH34: 0.004739336493 | AI34: -0.009433962264 | AJ34: 0.07142857143 | AK34: 0.03555555556 | AL34: 0.03433476395 | AM34: 0.07468879668 | AN34: 0.003861003861 | AO34: 0.1423076923 | AP34: =AF34 -> 2 | AQ34: =IF(ISERROR(SUM(AR8/AQ8)),"",SUM(AR8/AQ8)) -> 0.7070707071 | AR34: =SUMIF(AH34:AO34,"<0") -> -0.009433962264 | AU34: =AP34 -> 2 | CA34: 0.0652173913 | CB34: =IF(ISERROR(RANK(CA34,CA32:CA51,2)),"",(RANK(CA34,CA32:CA51,2))) -> 2 | CC34: 6 | CD34: 3 | CE34: 3 | CF34: 11.2 | CG34: 0.06666666667 | CH34: 1.046728972 | CI34: -0.09401313963 | CJ34: =MATCH(CE34,A7:A26,0)+6 -> 10 | CK34: =VLOOKUP(CE34, $A$7:$Q$26, 17,FALSE) -> 4 | CV34: 14 | CW34: =COUNTIF(K7:K18, "<14") -> 4 | CX34: 1
C35: =BC2 -> MR 1 | R35: =AF7 -> 1 | AF35: 3 | AG35: -0.08411214953 | AH35: =IF(ISERROR(SUM((AH9-AG9)/AG9)),"",SUM((AH9-AG9)/AG9)) -> 0.07 | AI35: -0.08411214953 | AJ35: 0.0306122449 | AK35: -0.009900990099 | AL35: 0 | AM35: 0.04 | AN35: 0.009615384615 | AO35: 0.06666666667 | AP35: 3 | AQ35: 0.875 | AR35: -0.09401313963 | AU35: 3 | BA35: << MR 1 2 3 4 5 6 7 8 DD/TT/QD XD Riders Fixed Price >> | CA35: 0.06666666667 | CB35: =IF(ISERROR(RANK(CA35,CA32:CA51,2)),"",(RANK(CA35,CA32:CA51,2))) -> 3 | CC35: 3 | CD35: 4 | CE35: 2 | CF35: 29.7 | CG35: 0.1423076923 | CH35: 1.142307692 | CI35: -0.009433962264 | CJ35: =MATCH(CE35,A7:A26,0)+6 -> 14 | CK35: =VLOOKUP(CE35, $A$7:$Q$26, 17,FALSE) -> 8 | CV35: 15 | CW35: =COUNTIF(K7:K18, "<15") -> 5 | CX35: 1
R36: =AF8 -> 2 | AF36: 4 | AG36: -0.07079646018 | AH36: 0.0462962963 | AI36: -0.07079646018 | AJ36: 0.09523809524 | AK36: 0.04347826087 | AL36: 0 | AM36: -0.03333333333 | AN36: 0.0775862069 | AO36: 0.192 | AP36: 4 | AQ36: 0.7046979866 | AR36: -0.1041297935 | AU36: 4 | CA36: 0.192 | CB36: =IF(ISERROR(RANK(CA36,CA32:CA51,2)),"",(RANK(CA36,CA32:CA51,2))) -> 7 | CC36: 4 | CD36: 5 | CE36: 9 | CF36: 15.7 | CG36: 0.1544117647 | CH36: 1.154411765 | CI36: -0.03846153846 | CJ36: =MATCH(CE36,A7:A26,0)+6 -> 12 | CK36: =VLOOKUP(CE36, $A$7:$Q$26, 17,FALSE) -> 6 | CM36: No of P's | CN36: 7 to 26 | CO36: sub 2 | CP36: 7 to 14 | CQ36: sub 2 | CR36: 7 to 12 | CS36: sub 2 | CV36: 16 | CW36: =COUNTIF(K7:K18, "<16") -> 6 | CX36: 0
A37: =BA10 -> 4 | D37: =BD10 -> 18.8 | E37: =BE10 -> 3.4 | F37: Q | G37: =BC14 -> 44.7 | R37: 3 | AF37: 5 | AG37: 0 | AP37: 5 | AR37: 0 | AU37: 5 | BA37: Help | BB37: Gambling Advice | BC37: TAB Home | BD37: Refresh | CA37: 0.1544117647 | CB37: =IF(ISERROR(RANK(CA37,CA32:CA51,2)),"",(RANK(CA37,CA32:CA51,2))) -> 5 | CC37: 9 | CD37: 6 | CE37: 7 | CF37: 19.4 | CG37: 0.1686746988 | CH37: 1.161676647 | CI37: -0.01323440076 | CJ37: =MATCH(CE37,A7:A26,0)+6 -> 13 | CV37: 17 | CW37: =COUNTIF(K7:K18, "<17") -> 6 | CX37: 0
A38: =BA11 -> 6 | E38: =BE11 -> 1.4 | F38: T | G38: =BI14 -> 683.4 | R38: 4 | AF38: 6 | AG38: -0.0612244898 | AH38: =IF(ISERROR(SUM((AH12-AG12)/AG12)),"",SUM((AH12-AG12)/AG12)) -> -0.04 | AI38: 0.02083333333 | AJ38: 0.02040816327 | AK38: 0 | AL38: -0.02 | AM38: 0 | AN38: -0.0612244898 | AO38: 0.0652173913 | AP38: 6 | AQ38: 0.92 | AR38: -0.1212244898 | AU38: 6 | CA38: 0.1686746988 | CB38: =IF(ISERROR(RANK(CA38,CA32:CA51,2)),"",(RANK(CA38,CA32:CA51,2))) -> 6 | CC38: 7 | CD38: 7 | CE38: 4 | CF38: 14.9 | CG38: 0.192 | CH38: 1.192 | CI38: -0.1041297935 | CJ38: =MATCH(CE38,A7:A26,0)+6 -> 11 | CM38: 0 | CN38: =SUM(COUNTIF(P7:P26,"<-.095")) -> 3 | CO38: =SUM(COUNTIF(P7:P26,"<-.095")) -> 3 | CP38: =SUM(COUNTIF(P7:P14,"<-.095")) -> 3 | CQ38: =SUM(COUNTIF(P8:P14,"<-.095")) -> 2 | CR38: =SUM(COUNTIF(P7:P12,"<-.095")) -> 3 | CS38: =SUM(COUNTIF(P8:P12,"<-.095")) -> 2 | CV38: 18 | CW38: =COUNTIF(K7:K18, "<18") -> 6 | CX38: 0
A39: =BA12 -> 3 | E39: =BE12 -> 1.7 | R39: 5 | AF39: 7 | AG39: -0.007246376812 | AH39: -0.007246376812 | AI39: 0.04379562044 | AJ39: 0.04895104895 | AK39: 0.03333333333 | AL39: 0 | AM39: 0.07741935484 | AN39: -0.005988023952 | AO39: 0.1686746988 | AP39: 7 | AQ39: 0.706185567 | AR39: -0.01323440076 | AU39: 7 | BA39: © Copyright UNiTAB Ltd | BB39: Created: Wed, 03 Apr 2013 12:09:33 Aust EST | CA39: 0.1423076923 | CB39: =IF(ISERROR(RANK(CA39,CA32:CA51,2)),"",(RANK(CA39,CA32:CA51,2))) -> 4 | CC39: 2 | CD39: 8 | CE39: 8 | CF39: 3 | CG39: 0.2 | CH39: 1.2 | CI39: -0.04347826087 | CJ39: =MATCH(CE39,A7:A26,0)+6 -> 8 | CM39: 10 | CN39: =SUM(COUNTIF(P7:P26,"<-.095"))-COUNTIF(P7:P26,"<-0.195") -> 2 | CO39: =SUM(COUNTIF(P8:P26,"<-.095"))-COUNTIF(P8:P26,"<-0.195") -> 2 | CP39: =SUM(COUNTIF(P7:P14,"<-.095"))-COUNTIF(P7:P14,"<-0.195") -> 2 | CQ39: =SUM(COUNTIF(P8:P14,"<-.095"))-COUNTIF(P8:P14,"<-0.195") -> 2 | CR39: =SUM(COUNTIF(P7:P12,"<-.095"))-COUNTIF(P7:P12,"<-0.195") -> 2 | CS39: =SUM(COUNTIF(P8:P12,"<-.095"))-COUNTIF(P8:P12,"<-0.195") -> 2 | CV39: 19 | CW39: =COUNTIF(K7:K18, "<19") -> 6 | CX39: 1
A40: =BA13 -> 0 | R40: 6 | AF40: 8 | AG40: -0.04347826087 | AH40: -0.04347826087 | AI40: 0.04545454545 | AJ40: 0 | AK40: 0 | AL40: 0 | AM40: 0 | AN40: 0.08695652174 | AO40: 0.2 | AP40: 8 | AQ40: 0.7333333333 | AR40: -0.04347826087 | AU40: 8 | CB40: =IF(ISERROR(RANK(CA40,CA32:CA51,2)),"",(RANK(CA40,CA32:CA51,2))) ->  | CC40: 5 | CD40: 9 | CJ40: =MATCH(CE40,A7:A26,0)+6 ->  | CM40: 20 | CN40: =SUM(COUNTIF(P7:P26,"<-0.195")-COUNTIF(P7:P26,"<-0.295")) -> 0 | CO40: =SUM(COUNTIF(P8:P26,"<-0.195")-COUNTIF(P8:P26,"<-0.295")) -> 0 | CP40: =SUM(COUNTIF(P7:P14,"<-0.195")-COUNTIF(P7:P14,"<-0.295")) -> 0 | CQ40: =SUM(COUNTIF(P8:P14,"<-0.195")-COUNTIF(P8:P14,"<-0.295")) -> 0 | CR40: =SUM(COUNTIF(P7:P12,"<-0.195")-COUNTIF(P7:P12,"<-0.295")) -> 0 | CS40: =SUM(COUNTIF(P8:P12,"<-0.195")-COUNTIF(P8:P12,"<-0.295")) -> 0 | CV40: 20 | CW40: =COUNTIF(K7:K18, "<20") -> 7
L41: TL | M41: =SUM(M43:N43) -> 4 | R41: 7 | AF41: 9 | AG41: -0.03846153846 | AH41: 0.1428571429 | AI41: -0.03846153846 | AJ41: 0.03 | AK41: 0.01941747573 | AL41: 0.01904761905 | AM41: 0.1121495327 | AN41: 0.1428571429 | AO41: 0.1544117647 | AP41: 9 | AQ41: 0.5796178344 | AR41: -0.03846153846 | AU41: 9 | AW41: H | AX41: I | AY41: j | AZ41: k | CB41: =IF(ISERROR(RANK(CA41,CA32:CA51,2)),"",(RANK(CA41,CA32:CA51,2))) ->  | CC41: 10 | CD41: 10 | CJ41: =MATCH(CE41,A7:A26,0)+6 ->  | CM41: 30 | CN41: =SUM(COUNTIF(P7:P26,"<-0.295")-COUNTIF(P7:P26,"<-0.395")) -> 0 | CO41: =SUM(COUNTIF(P8:P26,"<-0.295")-COUNTIF(P8:P26,"<-0.395")) -> 0 | CP41: =SUM(COUNTIF(P7:P14,"<-0.295")-COUNTIF(P7:P14,"<-0.395")) -> 0 | CQ41: =SUM(COUNTIF(P8:P14,"<-0.295")-COUNTIF(P8:P14,"<-0.395")) -> 0 | CR41: =SUM(COUNTIF(P7:P12,"<-0.295")-COUNTIF(P7:P12,"<-0.395")) -> 0 | CS41: =SUM(COUNTIF(P8:P12,"<-0.295")-COUNTIF(P8:P12,"<-0.395")) -> 0
L42: -0.0005 | M42: -0.09 | N42: -0.002 | O42: <0 | R42: 8 | AF42: 10 | AG42: 0 | AP42: 10 | AR42: 0 | AU42: 10 | CB42: =IF(ISERROR(RANK(CA42,CA32:CA51,2)),"",(RANK(CA42,CA32:CA51,2))) ->  | CC42: 0 | CD42: 11 | CJ42: =MATCH(CE42,A7:A26,0)+6 ->  | CM42: 40 | CN42: =SUM(COUNTIF(P7:P26,"<-.395")-COUNTIF(P7:P26,"<-.495")) -> 0 | CO42: =SUM(COUNTIF(P8:P26,"<-.395")-COUNTIF(P8:P26,"<-.495")) -> 0 | CP42: =SUM(COUNTIF(P7:P14,"<-.395")-COUNTIF(P7:P14,"<-.495")) -> 0 | CQ42: =SUM(COUNTIF(P8:P14,"<-.395")-COUNTIF(P8:P14,"<-.495")) -> 0 | CR42: =SUM(COUNTIF(P7:P12,"<-.395")-COUNTIF(P7:P12,"<-.495")) -> 0 | CS42: =SUM(COUNTIF(P8:P12,"<-.395")-COUNTIF(P8:P12,"<-.495")) -> 0
A43: =A7 -> 1 | B43: =COUNTIF(D43:K43,"<-.05") -> 5 | C43: 1 | D43: =IF(ISERROR(SUM((D7-C7)/C7)),"",SUM((D7-C7)/C7)) -> 0.08108108108 | E43: =IF(ISERROR(SUM((E7-D7)/D7)),"",SUM((E7-D7)/D7)) -> 0.0375 | F43: -0.2048192771 | G43: 0 | H43: -0.06060606061 | I43: -0.1451612903 | J43: -0.1509433962 | K43: -0.3333333333 | L43: =COUNTIF(D43:K43,"<-0.05")-COUNTIF(D43:K43,"<-0.09") -> 1 | M43: =COUNTIF(D43:K43,"<-0.09")-COUNTIF(D43:K43,"<-0.2") -> 2 | N43: =COUNTIF(D43:K43,"<-0.2") -> 2 | O43: =COUNTIF(D43:K43,"<0") -> 5 | P43: =SUMIF(D43:K43,"<0") -> -0.8948633576 | Q43: =MIN(D43:K43) -> -0.3333333333 | R43: 9 | AF43: 0 | AG43: 0 | AP43: 0 | AR43: 0 | AU43: 0 | AW43: =SUMIF(C43:H43,"<0") -> -0.2654253377 | AX43: =SUMIF(C43:I43,"<0") -> -0.410586628 | AY43: =SUMIF(C43:J43,"<0") -> -0.5615300243 | AZ43: =SUMIF(C43:K43,"<0") -> -0.8948633576 | CB43: =IF(ISERROR(RANK(CA43,CA32:CA51,2)),"",(RANK(CA43,CA32:CA51,2))) ->  | CC43: 0 | CD43: 12 | CJ43: =MATCH(CE43,A7:A26,0)+6 ->  | CM43: 50 | CN43: =SUM(COUNTIF(P7:P26,"<-.495")-COUNTIF(P7:P26,"<-.595")) -> 0 | CO43: =SUM(COUNTIF(P8:P26,"<-.495")-COUNTIF(P8:P26,"<-.595")) -> 0 | CP43: =SUM(COUNTIF(P7:P14,"<-.495")-COUNTIF(P7:P14,"<-.595")) -> 0 | CQ43: =SUM(COUNTIF(P8:P14,"<-.495")-COUNTIF(P8:P14,"<-.595")) -> 0 | CR43: =SUM(COUNTIF(P7:P12,"<-.495")-COUNTIF(P7:P12,"<-.595")) -> 0 | CS43: =SUM(COUNTIF(P8:P12,"<-.495")-COUNTIF(P8:P12,"<-.595")) -> 0
A44: =A8 -> 8 | B44: =COUNTIF(D44:K44,"<-.05") -> 0 | C44: 2 | D44: =IF(ISERROR(SUM((D8-C8)/C8)),"",SUM((D8-C8)/C8)) -> -0.04347826087 | E44: 0.04545454545 | F44: 0 | G44: 0 | H44: 0 | I44: 0 | J44: 0.08695652174 | K44: 0.2 | L44: =COUNTIF(D44:K44,"<-0.05")-COUNTIF(D44:K44,"<-0.09") -> 0 | M44: =COUNTIF(D44:K44,"<-0.09")-COUNTIF(D44:K44,"<-0.2") -> 0 | N44: =COUNTIF(D44:K44,"<-0.2") -> 0 | O44: =COUNTIF(D44:K44,"<0") -> 1 | P44: =SUMIF(D44:K44,"<0") -> -0.04347826087 | Q44: =MIN(D44:K44) -> -0.04347826087 | R44: 10 | AF44: 0 | AG44: 0 | AP44: 0 | AR44: 0 | AU44: 0 | AW44: -0.04347826087 | AX44: -0.04347826087 | AY44: -0.04347826087 | AZ44: -0.04347826087 | CB44: =IF(ISERROR(RANK(CA44,CA32:CA51,2)),"",(RANK(CA44,CA32:CA51,2))) ->  | CC44: 0 | CD44: 13 | CJ44: =MATCH(CE44,A7:A26,0)+6 ->  | CM44: 60 | CN44: =SUM(COUNTIF(P7:P26,"<-.595")-COUNTIF(P7:P26,"<-.695")) -> 0 | CO44: =SUM(COUNTIF(P8:P26,"<-.595")-COUNTIF(P8:P26,"<-.695")) -> 0 | CP44: =SUM(COUNTIF(P7:P14,"<-.595")-COUNTIF(P7:P14,"<-.695")) -> 0 | CQ44: =SUM(COUNTIF(P8:P14,"<-.595")-COUNTIF(P8:P14,"<-.695")) -> 0 | CR44: =SUM(COUNTIF(P7:P12,"<-.595")-COUNTIF(P7:P12,"<-.695")) -> 0 | CS44: =SUM(COUNTIF(P8:P12,"<-.595")-COUNTIF(P8:P12,"<-.695")) -> 0
A45: 6 | B45: 1 | C45: 3 | D45: -0.04 | E45: 0.02083333333 | F45: 0.02040816327 | G45: 0 | H45: -0.02 | I45: 0 | J45: -0.0612244898 | K45: 0.0652173913 | L45: 1 | M45: 0 | N45: 0 | O45: 3 | P45: -0.1212244898 | Q45: -0.0612244898 | R45: 0 | AF45: 0 | AG45: 0 | AP45: 0 | AR45: 0 | AU45: 0 | AW45: -0.06 | AX45: -0.06 | AY45: -0.1212244898 | AZ45: -0.1212244898 | CB45: =IF(ISERROR(RANK(CA45,CA32:CA51,2)),"",(RANK(CA45,CA32:CA51,2))) ->  | CC45: 0 | CD45: 14 | CJ45: =MATCH(CE45,A7:A26,0)+6 ->  | CM45: 70 | CN45: =SUM(COUNTIF(P7:P26,"<-.695")-COUNTIF(P7:P26,"<-.795")) -> 0 | CO45: =SUM(COUNTIF(P8:P26,"<-.695")-COUNTIF(P8:P26,"<-.795")) -> 0 | CP45: =SUM(COUNTIF(P7:P14,"<-.695")-COUNTIF(P7:P14,"<-.795")) -> 0 | CQ45: =SUM(COUNTIF(P8:P14,"<-.695")-COUNTIF(P8:P14,"<-.795")) -> 0 | CR45: =SUM(COUNTIF(P7:P12,"<-.695")-COUNTIF(P7:P12,"<-.795")) -> 0 | CS45: =SUM(COUNTIF(P8:P12,"<-.695")-COUNTIF(P8:P12,"<-.795")) -> 0
A46: 3 | B46: 1 | C46: 4 | D46: 0.07 | E46: -0.08411214953 | F46: 0.0306122449 | G46: -0.009900990099 | H46: 0 | I46: 0.04 | J46: 0.009615384615 | K46: 0.06666666667 | L46: 1 | M46: 0 | N46: 0 | O46: 2 | P46: -0.09401313963 | Q46: -0.08411214953 | R46: 0 | AF46: 0 | AG46: 0 | AP46: 0 | AR46: 0 | AU46: 0 | AW46: -0.09401313963 | AX46: -0.09401313963 | AY46: -0.09401313963 | AZ46: -0.09401313963 | CB46: =IF(ISERROR(RANK(CA46,CA32:CA51,2)),"",(RANK(CA46,CA32:CA51,2))) ->  | CC46: 0 | CD46: 15 | CJ46: =MATCH(CE46,A7:A26,0)+6 ->  | CM46: 80 | CN46: =SUM(COUNTIF(P7:P26,"<-.795")-COUNTIF(P7:P26,"<-.895")) -> 1 | CO46: =SUM(COUNTIF(P8:P26,"<-.795")-COUNTIF(P8:P26,"<-.895")) -> 0 | CP46: =SUM(COUNTIF(P7:P14,"<-.795")-COUNTIF(P7:P14,"<-.895")) -> 1 | CQ46: =SUM(COUNTIF(P8:P14,"<-.795")-COUNTIF(P8:P14,"<-.895")) -> 0 | CR46: =SUM(COUNTIF(P7:P12,"<-.795")-COUNTIF(P7:P12,"<-.895")) -> 1 | CS46: =SUM(COUNTIF(P8:P12,"<-.795")-COUNTIF(P8:P12,"<-.895")) -> 0
A47: 4 | B47: 1 | C47: 5 | D47: 0.0462962963 | E47: -0.07079646018 | F47: 0.09523809524 | G47: 0.04347826087 | H47: 0 | I47: -0.03333333333 | J47: 0.0775862069 | K47: 0.192 | L47: 1 | M47: 0 | N47: 0 | O47: 2 | P47: -0.1041297935 | Q47: -0.07079646018 | R47: 0 | AF47: 0 | AG47: 0 | AP47: 0 | AR47: 0 | AU47: 0 | AW47: -0.07079646018 | AX47: -0.1041297935 | AY47: -0.1041297935 | AZ47: -0.1041297935 | CB47: =IF(ISERROR(RANK(CA47,CA32:CA51,2)),"",(RANK(CA47,CA32:CA51,2))) ->  | CC47: 0 | CD47: 16 | CJ47: =MATCH(CE47,A7:A26,0)+6 ->  | CM47: 90 | CN47: =SUM(COUNTIF(P7:P26,"<-.895")-COUNTIF(P7:P26,"<-.995")) -> 0 | CO47: =SUM(COUNTIF(P8:P26,"<-.895")-COUNTIF(P8:P26,"<-.995")) -> 0 | CP47: =SUM(COUNTIF(P7:P14,"<-.895")-COUNTIF(P7:P14,"<-.995")) -> 0 | CQ47: =SUM(COUNTIF(P8:P14,"<-.895")-COUNTIF(P8:P14,"<-.995")) -> 0 | CR47: =SUM(COUNTIF(P7:P12,"<-.895")-COUNTIF(P7:P12,"<-.995")) -> 0 | CS47: =SUM(COUNTIF(P8:P12,"<-.895")-COUNTIF(P8:P12,"<-.995")) -> 0
A48: 9 | B48: 0 | C48: 6 | D48: 0.1428571429 | E48: -0.03846153846 | F48: 0.03 | G48: 0.01941747573 | H48: 0.01904761905 | I48: 0.1121495327 | J48: 0.1428571429 | K48: 0.1544117647 | L48: 0 | M48: 0 | N48: 0 | O48: 1 | P48: -0.03846153846 | Q48: -0.03846153846 | R48: 0 | AF48: 0 | AG48: 0 | AP48: 0 | AR48: 0 | AU48: 0 | AW48: -0.03846153846 | AX48: -0.03846153846 | AY48: -0.03846153846 | AZ48: -0.03846153846 | CB48: =IF(ISERROR(RANK(CA48,CA32:CA51,2)),"",(RANK(CA48,CA32:CA51,2))) ->  | CC48: 0 | CD48: 17 | CJ48: =MATCH(CE48,A7:A26,0)+6 ->  | CM48: 100 | CN48: =SUM(COUNTIF(P7:P26,"<-.995")) -> 0 | CO48: =SUM(COUNTIF(P8:P26,"<-.995")) -> 0 | CP48: =SUM(COUNTIF(P7:P14,"<-.995")) -> 0 | CQ48: =SUM(COUNTIF(P8:P14,"<-.995")) -> 0 | CR48: =SUM(COUNTIF(P7:P12,"<-.995")) -> 0 | CS48: =SUM(COUNTIF(P8:P12,"<-.995")) -> 0
A49: 7 | B49: 0 | C49: 7 | D49: -0.007246376812 | E49: 0.04379562044 | F49: 0.04895104895 | G49: 0.03333333333 | H49: 0 | I49: 0.07741935484 | J49: -0.005988023952 | K49: 0.1686746988 | L49: 0 | M49: 0 | N49: 0 | O49: 2 | P49: -0.01323440076 | Q49: -0.007246376812 | R49: 0 | AF49: 0 | AG49: 0 | AH49: =IF(ISERROR(SUM((AH23-AG23)/AG23)),"",SUM((AH23-AG23)/AG23)) ->  | AP49: 0 | AR49: 0 | AU49: 0 | AW49: -0.007246376812 | AX49: -0.007246376812 | AY49: -0.01323440076 | AZ49: -0.01323440076 | CB49: =IF(ISERROR(RANK(CA49,CA32:CA51,2)),"",(RANK(CA49,CA32:CA51,2))) ->  | CC49: 0 | CD49: 18 | CJ49: =MATCH(CE49,A7:A26,0)+6 ->  | CM49: Total 20 | CN49: =SUM(CN40:CN48) -> 1 | CO49: 0 | CP49: 1 | CQ49: 0 | CR49: 1 | CS49: 0
A50: 2 | B50: 0 | C50: 8 | D50: 0.004739336493 | E50: -0.009433962264 | F50: 0.07142857143 | G50: 0.03555555556 | H50: 0.03433476395 | I50: 0.07468879668 | J50: 0.003861003861 | K50: 0.1423076923 | L50: 0 | M50: 0 | N50: 0 | O50: 1 | P50: -0.009433962264 | Q50: -0.009433962264 | R50: 0 | AG50: 0 | AR50: 0 | AW50: -0.009433962264 | AX50: -0.009433962264 | AY50: -0.009433962264 | AZ50: -0.009433962264 | CB50: =IF(ISERROR(RANK(CA50,CA32:CA51,2)),"",(RANK(CA50,CA32:CA51,2))) ->  | CC50: 0 | CD50: 19 | CJ50: =MATCH(CE50,A7:A26,0)+6 ->  | CM50: Total 30 | CN50: =SUM(CN41:CN48) -> 1 | CO50: 0 | CP50: 1 | CQ50: 0 | CR50: 1 | CS50: 0
A51: 5 | B51: 0 | C51: 9 | L51: 0 | M51: 0 | N51: 0 | O51: 0 | P51: 0 | Q51: 0 | R51: 0 | AG51: 0 | AR51: 0 | AW51: 0 | AX51: 0 | AY51: 0 | AZ51: 0 | CB51: =IF(ISERROR(RANK(CA51,CA32:CA51,2)),"",(RANK(CA51,CA32:CA51,2))) ->  | CC51: 0 | CD51: 20 | CJ51: =MATCH(CE51,A7:A26,0)+6 ->  | CM51: Total 40 | CN51: =SUM(CN42:CN48) -> 1 | CO51: 0 | CP51: 1 | CQ51: 0 | CR51: 1 | CS51: 0
A52: 10 | B52: 0 | C52: 10 | L52: 0 | M52: 0 | N52: 0 | O52: 0 | P52: 0 | Q52: 0 | AG52: 0 | AR52: 0 | AW52: 0 | AX52: 0 | AY52: 0 | AZ52: 0 | CM52: Total 50 | CN52: =SUM(CN43:CN48) -> 1 | CO52: 0 | CP52: 1 | CQ52: 0 | CR52: 1 | CS52: 0
A53: 0 | B53: 0 | C53: 11 | L53: 0 | M53: 0 | N53: 0 | O53: 0 | P53: 0 | Q53: 0 | AG53: 0 | AR53: 0 | AW53: 0 | AX53: 0 | AY53: 0 | AZ53: 0 | CM53: Total 60 | CN53: =SUM(CN44:CN48) -> 1 | CO53: 0 | CP53: 1 | CQ53: 0 | CR53: 1 | CS53: 0
A54: 0 | B54: 0 | C54: 12 | L54: 0 | M54: 0 | N54: 0 | O54: 0 | P54: 0 | Q54: 0 | AG54: 0 | AR54: 0 | AW54: 0 | AX54: 0 | AY54: 0 | AZ54: 0 | BZ54: BW
A55: 0 | B55: 0 | C55: 13 | L55: 0 | M55: 0 | N55: 0 | O55: 0 | P55: 0 | Q55: 0 | AG55: 0 | AR55: 0 | AW55: 0 | AX55: 0 | AY55: 0 | AZ55: 0 | BZ55: Pos | CD55: DT's
A56: 0 | B56: 0 | C56: 14 | L56: 0 | M56: 0 | N56: 0 | O56: 0 | P56: 0 | Q56: 0 | AG56: 0 | AR56: 0 | AW56: 0 | AX56: 0 | AY56: 0 | AZ56: 0 | BZ56: K value | CD56: Horse | CE56: C7 | CF56: K7 | CG56: Increase | CJ56: Gap | CM56: $$ Gap | CN56: % Gap
A57: 0 | B57: 0 | C57: 15 | L57: 0 | M57: 0 | N57: 0 | O57: 0 | P57: 0 | Q57: 0 | AG57: 0 | AR57: 0 | AW57: 0 | AX57: 0 | AY57: 0 | AZ57: 0 | CB57: 1 | CC57: A7 | CD57: =A8 -> 8 | CE57: =C7 -> 7.4 | CF57: =K7 -> 3 | CG57: =K7-C7 -> -4.4 | CJ57: =A7 -> 1 | CK57: K7 | CL57: =K7 -> 3 | CM57: =SUM(CL58-CL57) -> 0 | CN57: =SUM(CL58/CL57-1) -> 0
A58: 0 | B58: 0 | C58: 16 | L58: 0 | M58: 0 | N58: 0 | O58: 0 | P58: 0 | Q58: 0 | AH58: =IF(ISERROR(SUM((AH32-AG32)/AG32)),"",SUM((AH32-AG32)/AG32)) ->  | AI58: -0.25 | AJ58: -0.3333333333 | AK58: -0.2 | AL58: -0.25 | AM58: -0.3333333333 | AN58: -0.5 | AO58: -0.5 | AP58: 0 | AW58: 0 | AX58: 0 | AY58: 0 | AZ58: 0 | CB58: 2 | CC58: A8 | CD58: =A9 -> 6 | CE58: =C8 -> 2.3 | CF58: =K8 -> 3 | CG58: =K8-C8 -> 0.7 | CJ58: =A8 -> 8 | CK58: K8 | CL58: =K8 -> 3 | CM58: =SUM(CL59-CL58) -> 1.9 | CN58: =SUM(CL59/CL58-1) -> 0.6333333333
A59: 0 | B59: 0 | C59: 17 | L59: 0 | M59: 0 | N59: 0 | O59: 0 | P59: 0 | Q59: 0 | AF59: Max Change | AH59: =MIN(AH33:AH58) -> -0.04347826087 | AI59: =MIN(AI33:AI58) -> -0.25 | AJ59: -0.3333333333 | AK59: -0.2 | AL59: -0.25 | AM59: -0.3333333333 | AN59: -0.5 | AO59: -0.5 | AW59: 0 | AX59: 0 | AY59: 0 | AZ59: 0 | CB59: 3 | CC59: A9 | CD59: 3 | CE59: 5 | CF59: 4.9 | CG59: -0.1 | CH59: > 0 | CJ59: 6 | CK59: K9 | CL59: =K9 -> 4.9 | CM59: 6.3 | CN59: 1.285714286
A60: 0 | B60: 0 | C60: 18 | D60: =IF(ISERROR(SUM((D24-C24)/C24)),"",SUM((D24-C24)/C24)) ->  | L60: 0 | M60: 0 | N60: 0 | O60: 0 | P60: 0 | Q60: 0 | AF60: Horse No | AH60: =VLOOKUP(AH59,$AH33:$AP58,9,0) -> 8 | AI60: =VLOOKUP(AI59,$AI33:$AP58,8,0) -> 0 | AJ60: =VLOOKUP(AJ59,$AJ33:$AP58,7,0) -> 0 | AK60: =VLOOKUP(AK59,$AK33:$AP58,6,0) -> 0 | AL60: =VLOOKUP(AL59,$AL33:$AP58,5,0) -> 0 | AM60: =VLOOKUP(AM59,$AM33:$AP58,4,0) -> 0 | AN60: =VLOOKUP(AN59,$AN33:$AP58,3,0) -> 0 | AO60: =VLOOKUP(AO59,$AO33:$AP58,2,0) -> 0 | AW60: 0 | AX60: 0 | AY60: 0 | AZ60: 0 | CB60: 4 | CC60: A10 | CD60: 4 | CE60: 10 | CF60: 11.2 | CG60: 1.2 | CH60: =COUNTIF(CG57:CG60,"> 0") -> 2 | CJ60: 3 | CK60: K10 | CL60: 11.2 | CM60: 3.7 | CN60: 0.3303571429
A61: 0 | B61: 0 | C61: 19 | D61: =IF(ISERROR(SUM((D25-C25)/C25)),"",SUM((D25-C25)/C25)) ->  | L61: 0 | M61: 0 | N61: 0 | O61: 0 | P61: 0 | Q61: 0 | AF61: No under 10% | AH61: =COUNTIF(AH33:AH58,"< -.1") -> 0 | AI61: 1 | AJ61: 2 | AK61: 1 | AL61: 1 | AM61: 2 | AN61: 2 | AO61: 2 | AW61: 0 | AX61: 0 | AY61: 0 | AZ61: 0 | CB61: 5 | CC61: A11 | CD61: 9 | CE61: 10.8 | CF61: 14.9 | CG61: 4.1 | CJ61: 4 | CK61: K11 | CL61: 14.9 | CM61: 0.8 | CN61: 0.05369127517
A62: 0 | B62: 0 | C62: 20 | L62: 0 | M62: 0 | N62: 0 | O62: 0 | P62: 0 | Q62: 0 | AF62: No under 20% | AH62: =COUNTIF(AH33:AH58,"< -.2") -> 0 | AI62: =COUNTIF(AI33:AI58,"< -.2") -> 1 | AJ62: 2 | AK62: 0 | AL62: 1 | AM62: 1 | AN62: 1 | AO62: 2 | AW62: 0 | AX62: 0 | AY62: 0 | AZ62: 0 | CB62: 6 | CC62: A12 | CD62: 7 | CE62: 9.1 | CF62: 15.7 | CG62: 6.6 | CJ62: 9 | CK62: K12 | CL62: 15.7 | CM62: 3.7 | CN62: 0.2356687898
A63: 0 | B63: 0 | C63: 21 | L63: 0 | M63: 0 | N63: 0 | O63: 0 | P63: 0 | Q63: 0 | AW63: 0 | AX63: 0 | AY63: 0 | AZ63: 0 | CB63: 7 | CC63: A13 | CD63: 2 | CE63: 13.8 | CF63: 19.4 | CG63: 5.6 | CJ63: 7 | CK63: K13 | CL63: 19.4 | CM63: 10.3 | CN63: 0.5309278351
A64: 0 | B64: 0 | C64: 22 | L64: 0 | M64: 0 | N64: 0 | O64: 0 | P64: 0 | Q64: 0 | AH64: =MIN(AH33:AH57) -> -0.04347826087 | AI64: =MIN(AH33:AI57) -> -0.08411214953 | AJ64: =MIN(AH33:AJ57) -> -0.2048192771 | AK64: =MIN(AH33:AK57) -> -0.2048192771 | AL64: =MIN(AH33:AL57) -> -0.2048192771 | AM64: =MIN(AH33:AM57) -> -0.2048192771 | AN64: =MIN(AH33:AN57) -> -0.2048192771 | AO64: =MIN(AH33:AO57) -> -0.3333333333 | AW64: 0 | AX64: 0 | AY64: 0 | AZ64: 0 | CB64: 8 | CC64: A14 | CD64: 5 | CE64: 21.1 | CF64: 29.7 | CG64: 8.6 | CJ64: 2 | CK64: K14 | CL64: 29.7 | CM64: -29.7 | CN64: -1
AG65: 2 | AH65: =SMALL(AH33:AH57,2) -> -0.04 | AI65: =SMALL(AH33:AI57,2) -> -0.07079646018 | AJ65: =SMALL(AH33:AJ57,2) -> -0.08411214953 | AK65: =SMALL(AH33:AK57,2) -> -0.08411214953 | AL65: =SMALL(AH33:AL57,2) -> -0.08411214953 | AM65: =SMALL(AH33:AM57,2) -> -0.1451612903 | AN65: =SMALL(AH33:AN57,2) -> -0.1509433962 | AO65: =SMALL(AH33:AO57,2) -> -0.2048192771 | CJ65: 5 | CK65: K15 | CL65: 0 | CM65: 0
AG66: 3 | AH66: =SMALL(AH33:AH57,3) -> -0.007246376812 | AI66: =SMALL(AH33:AI57,3) -> -0.04347826087 | AJ66: =SMALL(AH33:AJ57,3) -> -0.07079646018 | AK66: =SMALL(AH33:AK57,3) -> -0.07079646018 | AL66: =SMALL(AH33:AL57,3) -> -0.07079646018 | AM66: =SMALL(AH33:AM57,3) -> -0.08411214953 | AN66: =SMALL(AH33:AN57,3) -> -0.1451612903 | AO66: =SMALL(AH33:AO57,3) -> -0.1509433962 | CD66: Min C7-C14 | CE66: =MIN(C7:C14) -> 2.3 | CJ66: 10 | CK66: K16 | CL66: 0 | CM66: 0
AG67: 4 | AH67: =SMALL(AH33:AH57,4) -> 0.004739336493 | AI67: =SMALL(AH33:AI57,4) -> -0.04 | AJ67: =SMALL(AJ33:AJ57,4) -> 0.03 | AK67: 0 | AL67: 0 | AM67: 0 | AN67: 0.003861003861 | AO67: 0.1423076923 | CJ67: 0 | CK67: K17 | CL67: 0 | CM67: 0
CJ68: 0 | CK68: K18 | CL68: 0 | CM68: 0
CJ69: 0 | CK69: K19 | CL69: 0 | CM69: 0
CJ70: 0 | CK70: K20 | CL70: 0 | CM70: 0
CJ71: 0 | CK71: K21 | CL71: 0 | CM71: 0
CJ72: 0 | CK72: K22 | CL72: 0 | CM72: 0
CJ73: 0 | CK73: K23 | CL73: 0 | CM73: 0
CJ74: 0 | CK74: K24 | CL74: 0 | CM74: 0
CJ75: 0 | CK75: K25 | CL75: 0 | CM75: 0
CJ76: 0 | CK76: K26 | CL76: 0 | CM76: 0

Sheet Sheet2

Sheet Sheet3
